[Event "Titled Tuesday Blitz February 21 Early 2023"]
[White "Ilinca Ilinca, Felix Antonio"]
[Black "Korchmar, Vasiliy"]
[WhiteFideId "54764998"]
[BlackFideId "24131750"]
[WhiteElo "2266"]
[BlackElo "2438"]
[Result "1-0"]
[Round "11"]
[TimeControl "180+2"]
[Date "2023.02.21"]
[WhiteClock "0:01:06"]
[BlackClock "0:00:09"]

1. d4 {[%clk 0:03:00]}  d5 {[%clk 0:02:59]} 2. Bg5 {[%clk 0:02:59]}  Nf6 {[%clk 0:02:58]} 3. e3 {[%clk 0:02:56]}  c5 {[%clk 0:02:58]} 4. Nf3 {[%clk 0:02:53]}  Nc6 {[%clk 0:02:57]} 5. c3 {[%clk 0:02:35]}  e6 {[%clk 0:02:39]} 6. Nbd2 {[%clk 0:02:33]}  Be7 {[%clk 0:02:39]} 7. Bd3 {[%clk 0:02:28]}  b6 {[%clk 0:02:37]} 8. Ne5 {[%clk 0:02:18]}  Nxe5 {[%clk 0:02:37]} 9. dxe5 {[%clk 0:02:18]}  Nd7 {[%clk 0:02:37]} 10. Bxe7 {[%clk 0:02:14]}  Qxe7 {[%clk 0:02:38]} 11. f4 {[%clk 0:02:15]}  Bb7 {[%clk 0:02:31]} 12. O-O {[%clk 0:02:11]}  g5 {[%clk 0:02:30]} 13. Qh5 {[%clk 0:02:06]}  O-O-O {[%clk 0:02:22]} 14. a4 {[%clk 0:02:05]}  Rhg8 {[%clk 0:02:03]} 15. a5 {[%clk 0:02:01]}  gxf4 {[%clk 0:02:03]} 16. exf4 {[%clk 0:01:55]}  c4 {[%clk 0:01:58]} 17. Be2 {[%clk 0:01:53]}  d4 {[%clk 0:01:53]} 18. Bf3 {[%clk 0:01:50]}  Qc5 {[%clk 0:01:18]} 19. Bxb7+ {[%clk 0:01:45]}  Kxb7 {[%clk 0:01:19]} 20. Qf3+ {[%clk 0:01:44]}  Kb8 {[%clk 0:01:20]} 21. Ne4 {[%clk 0:01:41]}  Qd5 {[%clk 0:01:14]} 22. cxd4 {[%clk 0:01:33]}  Qxd4+ {[%clk 0:01:15]} 23. Kh1 {[%clk 0:01:33]}  Nc5 {[%clk 0:01:03]} 24. Nd6 {[%clk 0:01:19]}  b5 {[%clk 0:00:31]} 25. Rad1 {[%clk 0:01:09]}  Qxb2 {[%clk 0:00:18]} 26. Rb1 {[%clk 0:01:08]}  Qd4 {[%clk 0:00:09]} 27. Rxb5+ {[%clk 0:01:07]}  Kc7 {[%clk 0:00:09]} 28. Rb7+ {[%clk 0:01:06]} 1-0


[Site "https://www.chess.com"]

[Event "Titled Tuesday Blitz February 21 Early 2023"]
[White "Zhigalko, Sergei"]
[Black "Aydincelebi, Kagan"]
[WhiteFideId "13502956"]
[BlackFideId "6361102"]
[WhiteElo "2572"]
[BlackElo "2280"]
[Result "0-1"]
[Round "11"]
[TimeControl "180+2"]
[Date "2023.02.21"]
[WhiteClock "0:00:02"]
[BlackClock "0:00:12"]

1. e4 {[%clk 0:03:00]}  c5 {[%clk 0:02:58]} 2. c3 {[%clk 0:03:01]}  d5 {[%clk 0:02:57]} 3. exd5 {[%clk 0:03:01]}  Qxd5 {[%clk 0:02:57]} 4. d4 {[%clk 0:03:02]}  Nc6 {[%clk 0:02:58]} 5. Nf3 {[%clk 0:03:03]}  Bf5 {[%clk 0:02:59]} 6. Be3 {[%clk 0:03:03]}  cxd4 {[%clk 0:02:59]} 7. Nxd4 {[%clk 0:03:04]}  Nf6 {[%clk 0:02:58]} 8. Nd2 {[%clk 0:02:57]}  Nxd4 {[%clk 0:02:54]} 9. Bxd4 {[%clk 0:02:58]}  e5 {[%clk 0:02:53]} 10. Be3 {[%clk 0:02:50]}  Be7 {[%clk 0:02:17]} 11. Qa4+ {[%clk 0:02:22]}  Bd7 {[%clk 0:02:14]} 12. Qb3 {[%clk 0:02:22]}  O-O {[%clk 0:02:14]} 13. O-O-O {[%clk 0:02:20]}  Qc6 {[%clk 0:02:06]} 14. Qc4 {[%clk 0:02:03]}  Ng4 {[%clk 0:01:50]} 15. Qxc6 {[%clk 0:02:02]}  Bxc6 {[%clk 0:01:51]} 16. Nc4 {[%clk 0:02:02]}  Nxe3 {[%clk 0:01:49]} 17. Nxe3 {[%clk 0:02:03]}  Bc5 {[%clk 0:01:48]} 18. Rg1 {[%clk 0:02:00]}  b5 {[%clk 0:01:42]} 19. Be2 {[%clk 0:01:56]}  Rad8 {[%clk 0:01:38]} 20. Bf3 {[%clk 0:01:44]}  e4 {[%clk 0:01:32]} 21. Be2 {[%clk 0:01:33]}  g6 {[%clk 0:01:23]} 22. b4 {[%clk 0:01:08]}  Bb6 {[%clk 0:01:16]} 23. c4 {[%clk 0:01:09]}  bxc4 {[%clk 0:01:13]} 24. Bxc4 {[%clk 0:01:07]}  Kg7 {[%clk 0:01:13]} 25. Rxd8 {[%clk 0:00:53]}  Rxd8 {[%clk 0:01:12]} 26. Rd1 {[%clk 0:00:53]}  Rc8 {[%clk 0:01:13]} 27. Kb2 {[%clk 0:00:52]}  Ba4 {[%clk 0:01:09]} 28. Bb3 {[%clk 0:00:50]}  Bb5 {[%clk 0:01:07]} 29. Rd5 {[%clk 0:00:34]}  Bd3 {[%clk 0:00:46]} 30. a4 {[%clk 0:00:25]}  Rd8 {[%clk 0:00:31]} 31. a5 {[%clk 0:00:12]}  Bd4+ {[%clk 0:00:30]} 32. Ka3 {[%clk 0:00:11]}  Rxd5 {[%clk 0:00:29]} 33. Bxd5 {[%clk 0:00:12]}  f5 {[%clk 0:00:30]} 34. g3 {[%clk 0:00:12]}  Kf6 {[%clk 0:00:29]} 35. Bg8 {[%clk 0:00:06]}  h6 {[%clk 0:00:26]} 36. Kb3 {[%clk 0:00:07]}  g5 {[%clk 0:00:25]} 37. Bc4 {[%clk 0:00:07]}  Bb1 {[%clk 0:00:17]} 38. b5 {[%clk 0:00:03]}  Ke5 {[%clk 0:00:17]} 39. Bf7 {[%clk 0:00:01]}  f4 {[%clk 0:00:16]} 40. Ng4+ {[%clk 0:00:01]}  Kd6 {[%clk 0:00:16]} 41. gxf4 {[%clk 0:00:01]}  gxf4 {[%clk 0:00:17]} 42. Nxh6 {[%clk 0:00:01]}  Bxf2 {[%clk 0:00:17]} 43. Ng4 {[%clk 0:00:01]}  Bh4 {[%clk 0:00:17]} 44. b6 {[%clk 0:00:01]}  axb6 {[%clk 0:00:17]} 45. a6 {[%clk 0:00:01]}  e3 {[%clk 0:00:15]} 46. a7 {[%clk 0:00:01]}  Be4 {[%clk 0:00:15]} 47. Bg6 {[%clk 0:00:02]}  Ba8 {[%clk 0:00:14]} 48. Kc3 {[%clk 0:00:02]}  e2 {[%clk 0:00:12]} 0-1


[Site "https://www.chess.com"]

[Event "Titled Tuesday Blitz February 21 Early 2023"]
[White "Predke, Alexandr"]
[Black "Ambartsumova, Karina"]
[WhiteFideId "24107581"]
[BlackFideId "4166299"]
[WhiteElo "2685"]
[BlackElo "2393"]
[Result "1-0"]
[Round "11"]
[TimeControl "180+2"]
[Date "2023.02.21"]
[WhiteClock "0:00:03"]
[BlackClock "0:00:08"]

1. e4 {[%clk 0:03:00]}  c5 {[%clk 0:02:59]} 2. Nf3 {[%clk 0:03:00]}  Nc6 {[%clk 0:02:59]} 3. Nc3 {[%clk 0:02:58]}  e6 {[%clk 0:02:58]} 4. d4 {[%clk 0:02:56]}  cxd4 {[%clk 0:02:59]} 5. Nxd4 {[%clk 0:02:56]}  Qc7 {[%clk 0:03:00]} 6. Be3 {[%clk 0:02:50]}  Nf6 {[%clk 0:03:00]} 7. f4 {[%clk 0:02:48]}  Bb4 {[%clk 0:02:55]} 8. Nb5 {[%clk 0:02:48]}  Qa5 {[%clk 0:02:42]} 9. e5 {[%clk 0:02:47]}  Nd5 {[%clk 0:02:42]} 10. Bd2 {[%clk 0:02:43]}  a6 {[%clk 0:02:20]} 11. Nxd5 {[%clk 0:02:39]}  exd5 {[%clk 0:02:01]} 12. Nd6+ {[%clk 0:02:29]}  Ke7 {[%clk 0:02:01]} 13. Nf5+ {[%clk 0:02:16]}  Kf8 {[%clk 0:02:02]} 14. c3 {[%clk 0:02:07]}  Be7 {[%clk 0:01:56]} 15. Bd3 {[%clk 0:01:55]}  Qb6 {[%clk 0:01:47]} 16. Qb3 {[%clk 0:01:51]}  Qxb3 {[%clk 0:01:39]} 17. axb3 {[%clk 0:01:52]}  g6 {[%clk 0:01:38]} 18. Nxe7 {[%clk 0:01:48]}  Kxe7 {[%clk 0:01:39]} 19. b4 {[%clk 0:01:35]}  d6 {[%clk 0:01:38]} 20. b5 {[%clk 0:01:34]}  Nd8 {[%clk 0:01:23]} 21. O-O {[%clk 0:01:11]}  Ne6 {[%clk 0:01:10]} 22. exd6+ {[%clk 0:01:05]}  Kxd6 {[%clk 0:01:11]} 23. f5 {[%clk 0:01:02]}  Nc5 {[%clk 0:01:10]} 24. Bf4+ {[%clk 0:00:58]}  Kd7 {[%clk 0:01:00]} 25. Rad1 {[%clk 0:00:53]}  Nxd3 {[%clk 0:00:43]} 26. Rxd3 {[%clk 0:00:54]}  axb5 {[%clk 0:00:43]} 27. Rxd5+ {[%clk 0:00:54]}  Kc6 {[%clk 0:00:40]} 28. Rfd1 {[%clk 0:00:39]}  b6 {[%clk 0:00:35]} 29. Rd6+ {[%clk 0:00:36]}  Kb7 {[%clk 0:00:35]} 30. Rf6 {[%clk 0:00:36]}  Ra2 {[%clk 0:00:20]} 31. Rdd6 {[%clk 0:00:23]}  Bxf5 {[%clk 0:00:18]} 32. Rxb6+ {[%clk 0:00:23]}  Ka7 {[%clk 0:00:19]} 33. Rxb5 {[%clk 0:00:23]}  Ra1+ {[%clk 0:00:18]} 34. Kf2 {[%clk 0:00:23]}  Re8 {[%clk 0:00:18]} 35. Be3+ {[%clk 0:00:13]}  Ka8 {[%clk 0:00:18]} 36. Rd5 {[%clk 0:00:03]}  Ra2 {[%clk 0:00:14]} 37. Rd2 {[%clk 0:00:03]}  Be6 {[%clk 0:00:11]} 38. Rf4 {[%clk 0:00:03]}  Rb8 {[%clk 0:00:10]} 39. b4 {[%clk 0:00:03]}  Ra3 {[%clk 0:00:10]} 40. Bd4 {[%clk 0:00:03]}  Rc8 {[%clk 0:00:09]} 41. Re4 {[%clk 0:00:03]}  Rc4 {[%clk 0:00:09]} 42. Ree2 {[%clk 0:00:02]}  Kb7 {[%clk 0:00:10]} 43. Re1 {[%clk 0:00:02]}  Kc6 {[%clk 0:00:10]} 44. h3 {[%clk 0:00:02]}  h5 {[%clk 0:00:10]} 45. Be5 {[%clk 0:00:02]}  Kb5 {[%clk 0:00:09]} 46. Rd8 {[%clk 0:00:02]}  Ra2+ {[%clk 0:00:09]} 47. Kg1 {[%clk 0:00:02]}  Ra3 {[%clk 0:00:08]} 48. Bd4 {[%clk 0:00:03]}  Ka4 {[%clk 0:00:08]} 49. Ra8+ {[%clk 0:00:03]}  Kb3 {[%clk 0:00:09]} 50. Rxa3+ {[%clk 0:00:03]}  Kxa3 {[%clk 0:00:10]} 51. b5 {[%clk 0:00:03]}  Rc7 {[%clk 0:00:09]} 52. b6 {[%clk 0:00:03]}  Rb7 {[%clk 0:00:09]} 53. Kf2 {[%clk 0:00:04]}  Kb3 {[%clk 0:00:10]} 54. Ke3 {[%clk 0:00:04]}  Kc4 {[%clk 0:00:10]} 55. Kf4 {[%clk 0:00:03]}  Bd5 {[%clk 0:00:11]} 56. g3 {[%clk 0:00:03]}  Rb8 {[%clk 0:00:10]} 57. Re7 {[%clk 0:00:03]}  Rb7 {[%clk 0:00:10]} 58. Rxb7 {[%clk 0:00:02]}  Bxb7 {[%clk 0:00:11]} 59. Ke5 {[%clk 0:00:03]}  Bg2 {[%clk 0:00:11]} 60. Kd6 {[%clk 0:00:03]}  Kb5 {[%clk 0:00:10]} 61. Kc7 {[%clk 0:00:03]}  Ka6 {[%clk 0:00:11]} 62. c4 {[%clk 0:00:04]}  g5 {[%clk 0:00:07]} 63. c5 {[%clk 0:00:04]}  f5 {[%clk 0:00:07]} 64. c6 {[%clk 0:00:04]}  f4 {[%clk 0:00:06]} 65. gxf4 {[%clk 0:00:03]}  Bxh3 {[%clk 0:00:07]} 66. fxg5 {[%clk 0:00:03]}  h4 {[%clk 0:00:06]} 67. b7 {[%clk 0:00:03]}  Bc8 {[%clk 0:00:07]} 68. b8=Q {[%clk 0:00:03]}  h3 {[%clk 0:00:08]} 69. Qb6# {[%clk 0:00:03]} 1-0


[Site "https://www.chess.com"]

[Event "Titled Tuesday Blitz February 21 Early 2023"]
[White "Pakleza, Zbigniew"]
[Black "Al-Tarboush, Ward"]
[WhiteFideId "1119290"]
[BlackFideId "7601450"]
[WhiteElo "2494"]
[BlackElo "2256"]
[Result "1-0"]
[Round "11"]
[TimeControl "180+2"]
[Date "2023.02.21"]
[WhiteClock "0:00:04"]
[BlackClock "0:00:02"]

1. d4 {[%clk 0:03:00]}  d5 {[%clk 0:02:58]} 2. Bf4 {[%clk 0:03:00]}  Nf6 {[%clk 0:02:57]} 3. e3 {[%clk 0:03:00]}  c5 {[%clk 0:02:46]} 4. c3 {[%clk 0:03:00]}  Qb6 {[%clk 0:02:43]} 5. Qb3 {[%clk 0:03:00]}  c4 {[%clk 0:02:41]} 6. Qc2 {[%clk 0:03:01]}  g6 {[%clk 0:02:39]} 7. b3 {[%clk 0:02:47]}  Bf5 {[%clk 0:02:38]} 8. Qb2 {[%clk 0:02:48]}  Bg7 {[%clk 0:02:36]} 9. Nd2 {[%clk 0:02:48]}  O-O {[%clk 0:02:35]} 10. Ngf3 {[%clk 0:02:48]}  Nc6 {[%clk 0:02:34]} 11. Be2 {[%clk 0:02:48]}  Ne4 {[%clk 0:02:30]} 12. Nxe4 {[%clk 0:02:42]}  Bxe4 {[%clk 0:02:31]} 13. O-O {[%clk 0:02:40]}  Rac8 {[%clk 0:02:27]} 14. Rfc1 {[%clk 0:02:37]}  Na5 {[%clk 0:02:24]} 15. Nd2 {[%clk 0:02:27]}  Bf5 {[%clk 0:02:00]} 16. Qa3 {[%clk 0:02:26]}  Rfe8 {[%clk 0:01:51]} 17. bxc4 {[%clk 0:02:14]}  Nxc4 {[%clk 0:01:48]} 18. Nxc4 {[%clk 0:02:13]}  dxc4 {[%clk 0:01:49]} 19. Qa4 {[%clk 0:01:53]}  e5 {[%clk 0:01:44]} 20. dxe5 {[%clk 0:01:42]}  Bxe5 {[%clk 0:01:45]} 21. Bg3 {[%clk 0:01:10]}  Bxg3 {[%clk 0:01:41]} 22. hxg3 {[%clk 0:01:11]}  h5 {[%clk 0:01:42]} 23. Rd1 {[%clk 0:01:01]}  Qf6 {[%clk 0:01:25]} 24. Qxa7 {[%clk 0:00:55]}  Qxc3 {[%clk 0:01:24]} 25. Qxb7 {[%clk 0:00:43]}  Be4 {[%clk 0:01:23]} 26. Qb6 {[%clk 0:00:37]}  Qe5 {[%clk 0:01:20]} 27. Qd4 {[%clk 0:00:34]}  c3 {[%clk 0:01:12]} 28. Rac1 {[%clk 0:00:26]}  Qa5 {[%clk 0:01:08]} 29. f3 {[%clk 0:00:16]}  c2 {[%clk 0:01:08]} 30. Re1 {[%clk 0:00:12]}  Bf5 {[%clk 0:00:42]} 31. e4 {[%clk 0:00:13]}  Be6 {[%clk 0:00:41]} 32. a4 {[%clk 0:00:12]}  Red8 {[%clk 0:00:40]} 33. Qe3 {[%clk 0:00:11]}  Qxa4 {[%clk 0:00:39]} 34. f4 {[%clk 0:00:10]}  Qb4 {[%clk 0:00:37]} 35. f5 {[%clk 0:00:09]}  Rc3 {[%clk 0:00:37]} 36. Qg5 {[%clk 0:00:07]}  Qd4+ {[%clk 0:00:34]} 37. Kh2 {[%clk 0:00:07]}  h4 {[%clk 0:00:25]} 38. fxe6 {[%clk 0:00:05]}  hxg3+ {[%clk 0:00:23]} 39. Kh3 {[%clk 0:00:06]}  Kg7 {[%clk 0:00:21]} 40. Bf3 {[%clk 0:00:02]}  Rh8+ {[%clk 0:00:22]} 41. Kxg3 {[%clk 0:00:02]}  f5 {[%clk 0:00:22]} 42. exf5 {[%clk 0:00:02]}  Qd6+ {[%clk 0:00:17]} 43. Qf4 {[%clk 0:00:02]}  Rxf3+ {[%clk 0:00:08]} 44. Kxf3 {[%clk 0:00:02]}  Qd3+ {[%clk 0:00:07]} 45. Qe3 {[%clk 0:00:02]}  Qxf5+ {[%clk 0:00:06]} 46. Ke2 {[%clk 0:00:02]}  Rh4 {[%clk 0:00:06]} 47. Qc3+ {[%clk 0:00:01]}  Kg8 {[%clk 0:00:04]} 48. Kd2 {[%clk 0:00:02]}  Qf4+ {[%clk 0:00:03]} 49. Kxc2 {[%clk 0:00:03]}  Qf5+ {[%clk 0:00:04]} 50. Qd3 {[%clk 0:00:03]}  Rc4+ {[%clk 0:00:03]} 51. Kd2 {[%clk 0:00:03]}  Qf4+ {[%clk 0:00:03]} 52. Re3 {[%clk 0:00:04]}  Qf2+ {[%clk 0:00:03]} 53. Qe2 {[%clk 0:00:04]}  Rd4+ {[%clk 0:00:01]} 54. Kc3 {[%clk 0:00:04]}  Qf6 {[%clk 0:00:02]} 55. Re5 {[%clk 0:00:04]}  Rd5 {[%clk 0:00:01]} 56. Re1 {[%clk 0:00:04]}  Rc5+ {[%clk 0:00:02]} 57. Kd4 {[%clk 0:00:04]}  Rc8 {[%clk 0:00:02]} 58. Qe4 {[%clk 0:00:04]}  Qf2+ {[%clk 0:00:02]} 59. Qe3 {[%clk 0:00:05]}  Qb2+ {[%clk 0:00:03]} 60. Ke4 {[%clk 0:00:05]}  Qb4+ {[%clk 0:00:03]} 61. Kf3 {[%clk 0:00:06]}  Rf8+ {[%clk 0:00:03]} 62. Kg3 {[%clk 0:00:07]}  Qe7 {[%clk 0:00:01]} 63. Qe4 {[%clk 0:00:06]}  Qh7 {[%clk 0:00:02]} 64. Qg4 {[%clk 0:00:05]}  Qh6 {[%clk 0:00:02]} 65. e7 {[%clk 0:00:05]}  Re8 {[%clk 0:00:02]} 66. Re6 {[%clk 0:00:05]}  Kf7 {[%clk 0:00:03]} 67. Rf1+ {[%clk 0:00:05]}  Kg7 {[%clk 0:00:03]} 68. Qd4+ {[%clk 0:00:05]}  Kg8 {[%clk 0:00:04]} 69. Qf6 {[%clk 0:00:04]}  Qh5 {[%clk 0:00:01]} 70. Qf7+ {[%clk 0:00:04]}  Kh8 {[%clk 0:00:02]} 71. Qxe8+ {[%clk 0:00:04]}  Kh7 {[%clk 0:00:02]} 72. Qf7+ {[%clk 0:00:04]}  Kh6 {[%clk 0:00:03]} 73. Qf8+ {[%clk 0:00:05]}  Kh7 {[%clk 0:00:02]} 74. Rf7# {[%clk 0:00:04]} 1-0


[Site "https://www.chess.com"]

[Event "Titled Tuesday Blitz February 21 Early 2023"]
[White "EREBUNI91"]
[Black "Balla, Tamas-Kristof"]
[BlackFideId "1208497"]
[WhiteElo "2722"]
[BlackElo "2303"]
[Result "1-0"]
[Round "11"]
[TimeControl "180+2"]
[Date "2023.02.21"]
[WhiteClock "0:00:49"]
[BlackClock "0:00:42"]

1. e4 {[%clk 0:03:00]}  c5 {[%clk 0:02:59]} 2. Nf3 {[%clk 0:03:00]}  Nc6 {[%clk 0:02:59]} 3. d4 {[%clk 0:02:59]}  cxd4 {[%clk 0:03:00]} 4. Nxd4 {[%clk 0:03:00]}  e5 {[%clk 0:03:00]} 5. Nb5 {[%clk 0:02:59]}  d6 {[%clk 0:03:00]} 6. N1c3 {[%clk 0:02:58]}  a6 {[%clk 0:03:00]} 7. Na3 {[%clk 0:02:58]}  b5 {[%clk 0:03:00]} 8. Nd5 {[%clk 0:02:57]}  Nge7 {[%clk 0:03:00]} 9. Be2 {[%clk 0:02:52]}  Nxd5 {[%clk 0:02:58]} 10. exd5 {[%clk 0:02:52]}  Ne7 {[%clk 0:02:59]} 11. c4 {[%clk 0:02:50]}  g6 {[%clk 0:02:46]} 12. cxb5 {[%clk 0:02:46]}  Bg7 {[%clk 0:02:46]} 13. O-O {[%clk 0:02:45]}  O-O {[%clk 0:02:46]} 14. Bg5 {[%clk 0:02:38]}  f5 {[%clk 0:02:43]} 15. Qb3 {[%clk 0:02:30]}  f4 {[%clk 0:02:34]} 16. b6 {[%clk 0:02:28]}  Bb7 {[%clk 0:02:29]} 17. Rac1 {[%clk 0:02:27]}  h6 {[%clk 0:02:29]} 18. Bxe7 {[%clk 0:02:23]}  Qxe7 {[%clk 0:02:29]} 19. Rc7 {[%clk 0:02:24]}  Qg5 {[%clk 0:02:24]} 20. Rxb7 {[%clk 0:02:22]}  e4 {[%clk 0:02:23]} 21. f3 {[%clk 0:02:16]}  Bd4+ {[%clk 0:02:20]} 22. Kh1 {[%clk 0:02:15]}  exf3 {[%clk 0:02:20]} 23. Bxf3 {[%clk 0:02:14]}  Rae8 {[%clk 0:02:19]} 24. Nc2 {[%clk 0:02:14]}  Bc5 {[%clk 0:02:10]} 25. a4 {[%clk 0:02:09]}  Re5 {[%clk 0:02:09]} 26. a5 {[%clk 0:02:09]}  Qh4 {[%clk 0:02:03]} 27. Qd3 {[%clk 0:02:06]}  Rff5 {[%clk 0:02:00]} 28. b4 {[%clk 0:01:59]}  Bf2 {[%clk 0:01:43]} 29. h3 {[%clk 0:01:50]}  Qg3 {[%clk 0:01:38]} 30. Rc7 {[%clk 0:01:36]}  Rh5 {[%clk 0:01:37]} 31. Be4 {[%clk 0:01:10]}  Be3 {[%clk 0:01:12]} 32. Nxe3 {[%clk 0:01:03]}  Rxh3+ {[%clk 0:01:10]} 33. gxh3 {[%clk 0:01:01]}  Qxh3+ {[%clk 0:01:00]} 34. Kg1 {[%clk 0:01:01]}  Rg5+ {[%clk 0:00:43]} 35. Ng2 {[%clk 0:00:50]}  Rxg2+ {[%clk 0:00:41]} 36. Bxg2 {[%clk 0:00:49]}  Qxd3 {[%clk 0:00:42]} 37. b7 {[%clk 0:00:49]} 1-0


[Site "https://www.chess.com"]

[Event "Titled Tuesday Blitz February 21 Early 2023"]
[White "Sadubayev, Airat"]
[Black "Kejna, Piotr"]
[WhiteFideId "13713264"]
[BlackFideId "21821704"]
[WhiteElo "2320"]
[BlackElo "2027"]
[Result "1-0"]
[Round "11"]
[TimeControl "180+2"]
[Date "2023.02.21"]
[WhiteClock "0:00:16"]
[BlackClock "0:00:01"]

1. d4 {[%clk 0:02:58]}  Nf6 {[%clk 0:02:59]} 2. c4 {[%clk 0:02:58]}  e5 {[%clk 0:02:59]} 3. dxe5 {[%clk 0:02:55]}  Ng4 {[%clk 0:02:59]} 4. Bf4 {[%clk 0:02:55]}  g5 {[%clk 0:02:58]} 5. Bg3 {[%clk 0:02:52]}  Nc6 {[%clk 0:02:58]} 6. Nf3 {[%clk 0:02:50]}  Bg7 {[%clk 0:02:58]} 7. h4 {[%clk 0:02:48]}  Ngxe5 {[%clk 0:02:58]} 8. Nc3 {[%clk 0:02:44]}  g4 {[%clk 0:02:54]} 9. Nxe5 {[%clk 0:02:41]}  Nxe5 {[%clk 0:02:54]} 10. e3 {[%clk 0:02:37]}  d6 {[%clk 0:02:52]} 11. Be2 {[%clk 0:02:34]}  f5 {[%clk 0:02:46]} 12. h5 {[%clk 0:02:19]}  Be6 {[%clk 0:02:38]} 13. h6 {[%clk 0:02:14]}  Bf6 {[%clk 0:02:38]} 14. Nd5 {[%clk 0:02:13]}  O-O {[%clk 0:02:19]} 15. Nxf6+ {[%clk 0:02:06]}  Qxf6 {[%clk 0:02:19]} 16. Qd4 {[%clk 0:02:04]}  Nc6 {[%clk 0:02:00]} 17. Qxf6 {[%clk 0:01:58]}  Rxf6 {[%clk 0:02:01]} 18. Kd2 {[%clk 0:01:49]}  Kf7 {[%clk 0:01:52]} 19. Kc3 {[%clk 0:01:49]}  Kg6 {[%clk 0:01:37]} 20. Rad1 {[%clk 0:01:45]}  b6 {[%clk 0:01:18]} 21. b3 {[%clk 0:01:31]}  Ne5 {[%clk 0:01:11]} 22. Rd2 {[%clk 0:01:08]}  Rff8 {[%clk 0:00:58]} 23. Bd1 {[%clk 0:01:06]}  Bc8 {[%clk 0:00:40]} 24. Bc2 {[%clk 0:00:44]}  Bb7 {[%clk 0:00:32]} 25. Rh2 {[%clk 0:00:41]}  Nf7 {[%clk 0:00:27]} 26. Bf4 {[%clk 0:00:40]}  Ng5 {[%clk 0:00:17]} 27. f3 {[%clk 0:00:20]}  gxf3 {[%clk 0:00:12]} 28. gxf3 {[%clk 0:00:21]}  Nxf3 {[%clk 0:00:08]} 29. Rdg2+ {[%clk 0:00:20]}  Kf6 {[%clk 0:00:07]} 30. Rh5 {[%clk 0:00:19]}  Be4 {[%clk 0:00:06]} 31. Bxe4 {[%clk 0:00:17]}  fxe4 {[%clk 0:00:07]} 32. Rg7 {[%clk 0:00:17]}  Rf7 {[%clk 0:00:07]} 33. Rf5+ {[%clk 0:00:16]}  Kxf5 {[%clk 0:00:07]} 34. Rxf7+ {[%clk 0:00:17]}  Kg4 {[%clk 0:00:04]} 35. Rxh7 {[%clk 0:00:16]}  Rg8 {[%clk 0:00:01]} 36. Rg7+ {[%clk 0:00:16]} 1-0


[Site "https://www.chess.com"]

[Event "Titled Tuesday Blitz February 21 Early 2023"]
[White "Cuenca Jimenez, Jose Fernando"]
[Black "Bon, Michael"]
[WhiteFideId "2255570"]
[BlackFideId "620696"]
[WhiteElo "2535"]
[BlackElo "2394"]
[Result "0-1"]
[Round "11"]
[TimeControl "180+2"]
[Date "2023.02.21"]
[WhiteClock "0:00:02"]
[BlackClock "0:00:15"]

1. Nf3 {[%clk 0:03:00]}  d5 {[%clk 0:02:58]} 2. b3 {[%clk 0:03:00]}  g6 {[%clk 0:02:54]} 3. Bb2 {[%clk 0:02:58]}  Nf6 {[%clk 0:02:54]} 4. c4 {[%clk 0:02:50]}  Bg7 {[%clk 0:02:44]} 5. cxd5 {[%clk 0:02:39]}  O-O {[%clk 0:02:42]} 6. g3 {[%clk 0:02:37]}  Nxd5 {[%clk 0:02:34]} 7. Bxg7 {[%clk 0:02:36]}  Kxg7 {[%clk 0:02:35]} 8. Qc1 {[%clk 0:02:35]}  Nc6 {[%clk 0:02:06]} 9. Qb2+ {[%clk 0:02:30]}  f6 {[%clk 0:02:00]} 10. d4 {[%clk 0:02:27]}  Bg4 {[%clk 0:01:51]} 11. Bg2 {[%clk 0:02:25]}  Bxf3 {[%clk 0:01:44]} 12. Bxf3 {[%clk 0:02:25]}  Ndb4 {[%clk 0:01:44]} 13. Bxc6 {[%clk 0:00:28]}  Nxc6 {[%clk 0:01:43]} 14. e3 {[%clk 0:00:27]}  e5 {[%clk 0:01:36]} 15. dxe5 {[%clk 0:00:27]}  Nxe5 {[%clk 0:01:34]} 16. O-O {[%clk 0:00:24]}  Nf3+ {[%clk 0:01:16]} 17. Kg2 {[%clk 0:00:24]}  Qd5 {[%clk 0:01:15]} 18. Nc3 {[%clk 0:00:23]}  Qh5 {[%clk 0:01:15]} 19. h3 {[%clk 0:00:21]}  Rad8 {[%clk 0:00:54]} 20. Rad1 {[%clk 0:00:16]}  Ng5 {[%clk 0:00:52]} 21. h4 {[%clk 0:00:04]}  Qf3+ {[%clk 0:00:52]} 22. Kh2 {[%clk 0:00:04]}  Ne4 {[%clk 0:00:46]} 23. Qe2 {[%clk 0:00:03]}  Qxe2 {[%clk 0:00:42]} 24. Nxe2 {[%clk 0:00:04]}  Rxd1 {[%clk 0:00:41]} 25. Rxd1 {[%clk 0:00:05]}  Nxf2 {[%clk 0:00:42]} 26. Rc1 {[%clk 0:00:04]}  Rf7 {[%clk 0:00:39]} 27. Kg2 {[%clk 0:00:04]}  Ng4 {[%clk 0:00:39]} 28. Kf3 {[%clk 0:00:03]}  h5 {[%clk 0:00:37]} 29. Nd4 {[%clk 0:00:03]}  Re7 {[%clk 0:00:37]} 30. Rxc7 {[%clk 0:00:03]}  Rxc7 {[%clk 0:00:28]} 31. Ne6+ {[%clk 0:00:04]}  Kf7 {[%clk 0:00:29]} 32. Nxc7 {[%clk 0:00:04]}  Ke7 {[%clk 0:00:28]} 33. e4 {[%clk 0:00:05]}  a6 {[%clk 0:00:25]} 34. Kf4 {[%clk 0:00:04]}  Ne5 {[%clk 0:00:20]} 35. Nd5+ {[%clk 0:00:04]}  Ke6 {[%clk 0:00:20]} 36. Ke3 {[%clk 0:00:04]}  Nc6 {[%clk 0:00:19]} 37. Nf4+ {[%clk 0:00:04]}  Kf7 {[%clk 0:00:19]} 38. Kd2 {[%clk 0:00:02]}  Ne5 {[%clk 0:00:17]} 39. Kc3 {[%clk 0:00:02]}  g5 {[%clk 0:00:15]} 0-1


[Site "https://www.chess.com"]